Cogmind - Beta 14 @@@ ROGUE MODE // 2025.03.26 @ 21:23:50 Player: King Of Bel Result: Destroyed by G-34 Mercenary with Small Laser Performance ------------- Evolutions (0) 0 Regions Visited (1) 200 Robots Destroyed (13) 65 Value Destroyed (259) 259 Prototype IDs (0) 0 Alien Tech Used (0) 0 Bonus (0) 0 TOTAL SCORE: 524 Bonus ------- None Cogmind --------- Core Integrity 0/250 Matter 300/300 Energy 100/100 System Corruption 0% Temperature Cool (6) Movement Rolling (100) Location -10/Materials Parts ------- > --- POWER (1) -------- (None) > --- PROPULSION (2) --- Compact Wheel > --- UTILITY (2) ------ Medium Storage Unit Signal Interpreter > --- WEAPON (2) ------- (None) > --- INVENTORY (10) --- Light Ion Engine Light Treads Light Treads Flight Unit High-capacity Storage Unit Targeting Computer Targeting Computer Peak State ------------ > --- POWER ------------ Light Ion Engine > --- PROPULSION ------- Aluminum Leg Aluminum Leg > --- UTILITY ---------- Medium Storage Unit Improved Terrain Scanner > --- WEAPON ----------- EM Pulse Gun EM Pulse Gun > --- INVENTORY -------- Light Ion Engine Light Ion Engine Light Treads Light Treads Wheel Compact Wheel High-capacity Storage Unit Targeting Computer Targeting Computer Light Assault Rifle [Rating: 10] Favorites ----------- Power Light Ion Engine Engine Light Ion Engine Propulsion Aluminum Leg Leg Aluminum Leg Wheel Compact Wheel Utility Medium Storage Unit Device Improved Terrain Scanner Storage Medium Storage Unit Processor Signal Interpreter Weapon EM Pulse Gun Energy Gun EM Pulse Gun Ballistic Gun Light Assault Rifle Build | -11 -10 ------- Run | Yrd Mat Slots Evolved . | . . Power . | . . Propulsion . | . . Utility . | . . Weapon . | . . Parts Attached 14 | 8 6 Power 2 | 1 1 Engine 2 | 1 1 Core . | . . Reactor . | . . Propulsion 3 | 2 1 Treads . | . . Leg 2 | 2 . Wheel 1 | . 1 Hover . | . . Flight . | . . Utility 4 | 2 2 Device 1 | 1 . Storage 2 | 1 1 Processor 1 | . 1 Hackware . | . . Protection . | . . Artifact . | . . Weapon 5 | 3 2 Energy Gun 3 | 2 1 Energy Cannon . | . . Ballistic Gun 2 | 1 1 Ballistic Cannon . | . . Launcher . | . . Special Weapon . | . . Impact Weapon . | . . Slashing Weapon . | . . Piercing Weapon . | . . Special Melee Weapon . | . . Unidentified Prototypes . | . . Parts Lost 9 | . 9 Power 2 | . 2 Propulsion 2 | . 2 Utility 1 | . 1 Weapon 4 | . 4 Highest Loss Streak 5 | . 5 To Critical Strikes . | . . Average Slot Usage (%) 90 | . 90 Engine 8 | . 8 Leg 26 | . 26 Device 8 | . 8 Storage 14 | . 14 Processor 4 | . 4 Energy Gun 21 | . 21 Ballistic Gun 5 | . 5 Peak Build Rating 10 | 9 10 Average Rating 7 | 4 7 On Entrance 4 | . 9 Naked Turns . | . . Heaviest Build 18 | 13 18 Greatest Support 20 | 20 20 Greatest Overweight (x) 3 | 3 1 Average Overweight (x) . | . . Largest Inventory Capacity 10 | 8 10 Average Capacity 9 | 7 9 Most Carried 10 | 8 10 Average Carried 8 | 5 8 Final Capacity 10 | 8 10 Final Carried 8 | 8 7 Class Distribution -------------------- 100% | Mutant Dominant Class ---------------- Mutant | -10/Materials Resources | -11 -10 ----------- Run | Yrd Mat Matter Collected 343 | 267 76 Remotely . | . . Salvage Created 427 | 113 314 Parts 24 | 5 19 Haulers Intercepted . | . . Recyclers Shooed . | . . Parts Field Recycled . | . . Retrieved Matter . | . . Parts Self-Destructed . | . . Prevented . | . . Kills | -11 -10 ------- Run | Yrd Mat Combat Hostiles Destroyed 9 | . 9 Guns 6 | . 6 AOE 3 | . 3 Classes Destroyed 6 | 2 4 Worker 1 | . 1 Builder 1 | . 1 Tunneler 1 | 1 . Recycler 1 | 1 . Swarmer 4 | . 4 Grunt 5 | . 5 Best Kill Streak 7 | 2 7 Combat Bots Only 3 | . 3 Max Kills in Single Turn 4 | 1 4 Gunslinging . | . . Exploded 3 | . 3 Melee . | . . Uniques/NPCs Destroyed . | . . Combat | -11 -10 -------- Run | Yrd Mat Hostile Shots Fired 117 | . 117 Missed 32 | . 32 Damage Taken 837 | . 837 Core 260 | . 260 Absorbed by Shields . | . . Core Remaining (%) 100 | 100 . Volleys Fired 32 | 2 30 Largest 2 | 2 2 Hottest 80 | 80 80 Shots Fired 46 | 4 42 Gun 46 | 4 42 Cannon . | . . Launcher . | . . Special . | . . Kinetic 19 | . 19 Thermal 6 | . 6 Explosive . | . . Electromagnetic 21 | 4 17 Robot Hit Streak 8 | 3 8 Robot Miss Streak 2 | . 2 Penetration Max . | . . Secondary Targets . | . . Shots Hit Robots 32 | 3 29 Core Hits 23 | 3 20 Critical Kills . | . . Critical Parts Destroyed . | . . Critical Strikes . | . . Melee Attacks . | . . Impact . | . . Slashing . | . . Piercing . | . . Sneak Attacks . | . . Combat Hostiles . | . . Follow-up Attacks . | . . Damage Inflicted 532 | 40 492 Guns 348 | 40 308 Cannons . | . . Explosions 183 | . 183 Melee . | . . Ramming 1 | . 1 Kinetic 117 | . 117 Thermal 123 | . 123 Explosive . | . . Electromagnetic 291 | 40 251 Impact . | . . Slashing . | . . Piercing . | . . Highest Corruption . | . . Average Corruption . | . . Corruption Purged . | . . Corruption Blocked . | . . Overload Shots . | . . Overflow Damage . | . . Projectiles . | . . Explosions . | . . Melee . | . . Knockbacks . | . . Impact . | . . Kinetic . | . . Secondary . | . . Self-Inflicted Damage . | . . Shots . | . . Rammed 1 | . 1 Targets Rammed 1 | . 1 Kicked . | . . Crushed . | . . Highest Temperature 67 | 18 67 Average Temperature 25 | 12 26 Received Heat Transfer 291 | . 291 Siege Activations . | . . Robots Corrupted . | . . Combat Hostiles . | . . Parts Fried . | . . Impact Corruptions . | . . Robots Melted . | . . Combat Hostiles . | . . Parts Melted 1 | . 1 Heat Transferred 150 | . 150 Parts Sabotaged . | . . Parts Stolen . | . . Parts Stripped . | . . Power Chain Reactions 2 | . 2 Alert | -11 -10 ------- Run | Yrd Mat Peak Influence 308 | 10 308 Initial 6 | . 6 Average 84 | 3 97 Maximum Alert Level 1 | . 1 Low Security (%) 84 | 100 82 Level 1 15 | . 17 Level 2 . | . . Level 3 . | . . Level 4 . | . . Level 5 . | . . High Security . | . . Max Security . | . . Squads Dispatched 3 | . 3 Investigation 2 | . 2 Extermination . | . . Reinforcement 1 | . 1 Assault . | . . Garrison . | . . Intercept . | . . Searches Triggered . | . . Construction Impeded . | . . Haulers Reinforced . | . . Active Scanning Responses . | . . Cargo Convoy Interrupts . | . . Stealth | -11 -10 --------- Run | Yrd Mat Distress Signals 2 | . 2 Communications Jammed . | . . Distress Signals . | . . Times Spotted 21 | . 21 Peak Tracking Total 6 | . 6 Tactical Retreats 1 | . 1 Traps | -11 -10 ------- Run | Yrd Mat Traps Triggered 2 | . 2 Indirectly 1 | . 1 Trap Hack Attempts . | . . Triggered . | . . Disarmed . | . . Reprogrammed . | . . Reused . | . . Traps Extracted . | . . Installed . | . . Triggered . | . . Machines | -11 -10 ---------- Run | Yrd Mat Machines Disabled 3 | . 3 Max in Single Turn 2 | . 2 Machines Repaired . | . . Machines Dismantled . | . . Machines Sabotaged . | . . Overloaded Fab Kills . | . . Hacking | -11 -10 --------- Run | Yrd Mat Machines Accessed 3 | . 3 Terminals 3 | . 3 Fabricators . | . . Repair Stations . | . . Recycling Units . | . . Scanalyzers . | . . Garrison Access . | . . Total Hacks 5 | . 5 Successful 3 | . 3 Failed 2 | . 2 Catastrophic . | . . Database Lockouts . | . . Manual 5 | . 5 Terminals 5 | . 5 Fabricators . | . . Repair Stations . | . . Recycling Units . | . . Scanalyzers . | . . Garrison Access . | . . Terminal Hacks . | . . Fabricator Hacks . | . . Repair Station Hacks . | . . Recycling Unit Hacks . | . . Scanalyzer . | . . Garrison Access Hacks . | . . Unauthorized Hacks 3 | . 3 Terminals 3 | . 3 Assimilate 3 | . 3 Fabricators . | . . Repair Stations . | . . Recycling Units . | . . Scanalyzers . | . . Garrison Access . | . . Data Cores Recovered . | . . Used . | . . Hacking Detections . | . . Full Trace Events . | . . Feedback Events . | . . Feedback Blocked . | . . Robot Schematics Acquired . | . . Robots Built . | . . Authchips . | . . Time . | . . Total Robot Build Rating . | . . Part Schematics Acquired . | . . Parts Built . | . . Authchips . | . . Time . | . . Total Part Build Rating . | . . Parts Repaired . | . . Time . | . . Parts Recycled . | . . Recycled Matter . | . . Retrieved Matter . | . . Retrieved Components . | . . Parts Scanalyzed . | . . Part Schematics Acquired . | . . Parts Damaged . | . . Bothacking | -11 -10 ------------ Run | Yrd Mat Used RIF Installer . | . . Robots Hacked . | . . Non-combat . | . . Combat . | . . Robot Hacks Applied . | . . Relay Couplers Released . | . . Fabnet Peak Effective % . | . . Robots Rewired . | . . Allies Hacked . | . . Hacks Repelled . | . . Allies | -11 -10 -------- Run | Yrd Mat Total Allies . | . . Largest Group . | . . Highest-Rated Group . | . . Highest-Rated Ally . | . . Total Orders . | . . Ally Attacks . | . . Total Damage . | . . Kills . | . . Allies Corrupted . | . . Allies Melted . | . . Intel | -11 -10 ------- Run | Yrd Mat Robot Analysis Total . | . . Derelict Logs Recovered . | . . Drone Launches . | . . Drone Recoveries . | . . Exploration | -11 -10 ------------- Run | Yrd Mat Turns Passed 610 | 80 530 Spaces Moved 408 | 47 361 Core 22 | 22 . Treads . | . . Legs 375 | 25 350 Wheels 11 | . 11 Hover . | . . Flight . | . . Fastest Speed 50 | 50 100 Average Speed 119 | 115 120 Slowest Speed 200 | 200 190 Overloaded Moves . | . . Propulsion Burnouts . | . . Robots Hopped . | . . Cave-ins Triggered . | . . Exploration Rate (%) 26 | 4 49 Regions Visited 1 Branch Regions . Pre-discovered Areas . | . . Known Exits Taken . | . . Unknown Exits Taken 1 | 1 . Scrap Searched . | . . Spaces Dug . | . . Terrain Destroyed . | . . Melee . | . . Projectile . | . . AOE . | . . Terrain Rammed . | . . Walls Destroyed . | . . Machines Disabled . | . . Actions | -11 -10 --------- Run | Yrd Mat Total 484 | 65 419 Wait 14 | 1 13 Move 407 | 46 361 Hop . | . . Pick Up 13 | 8 5 Fast Attach 8 | 7 1 Attach 4 | . 4 Detach . | . . Swap 2 | 1 1 Drop 3 | . 3 Fire 32 | 2 30 Melee . | . . Ram 1 | . 1 Kick . | . . Crush . | . . Escape Stasis . | . . Rewire . | . . Trap . | . . Miscellaneous . | . . Route ------- -11/Scrapyard -10/Materials (discovered 2 exits: [*Mat] / [*Min]) History --------- Turn | Location | Event 41 | -11/Scrapyard | Discovered new exit (range 15) 81 | -11/Scrapyard | Entered Materials 254 | -10/Materials | Discovered new exit (range 14) 303 | -10/Materials | Build established: Mutant 328 | -10/Materials | Discovered new exit (range 10) 436 | -10/Materials | Lost 4 parts (1p1u2w) 587 | -10/Materials | Core integrity fell below 50% 607 | -10/Materials | Core integrity fell below 20% 611 | -10/Materials | Destroyed by G-34 Mercenary with Small Laser Last Messages --------------- Testing... System interface override in place. 00580_ Aluminum Leg destroyed. 00582_ T-07 Excavator destroyed. 00582_ K-01 Serf collects debris. 00587_ R-06 Scavenger collects Imp. Terrain Scanner. 00589_ K-01 Serf collects debris. 00590_ R-06 Scavenger collects Mining Laser. 00591_ K-01 Serf collects debris. 00592_ Acquired 10 matter. 00592_ R-06 Scavenger collects Lgt. Ion Engine. 00592_ Aluminum Leg destroyed. 00593_ Lgt. Ion Engine destroyed. 00594_ Slammed into R-06 Scavenger. 00595_ K-01 Serf collects debris. 00602_ Sml. Laser destroyed. 00606_ S-10 Pest destroyed. 00606_ Lgt. Assault Rifle destroyed. 00608_ K-01 Serf collects debris. 00608_ R-06 Scavenger collects Flight Unit. Map ----- +----------------------------------------------------+ | ?????????????????????????????????????????????????? | | ?????????????????????????????????????????????????? | | ?????????????????????????????????????????????????? | | ?????????????????????????????????????????????????? | | ?????????????????????????????????????????????????? | | ?#####???????????????????????????????????????????? | | ##"""##??????????????????????????????????????????? | | #"!!!"##?????#?????#?????????????????????????????? | | "" ""##?????#????????#???#???? ????????????????? | | #?#?????????#??????#??????????????????????? | | < #????????######?#####?????????????????????? | | #?#??#???#||]]|?# #?????+#####??????????? | | #????????#||]]||# < ##### +??????????? | | ? #?#??#?????? # #"T"# #??????????? | | ## ############ ? # #??????????? | | #T #??????????? | | ?# ? % #??????????? | | ?# ??? #??????????? | | ## ##########???#????# w #??????????? | | # ################## #??????????? | | # # #t% #?????????????? | | # % %+ %"""%+ #?????????????? | | # """ # ="T" # % #? ???????????? | | # ## """ ## # #?????????????? | | ######## """ ######### #?????"???????? | | # + """ @ #?? ???????? | | # """# """ # """"????????? | | # """# s + """"????????? | | #! """# s % # "???????????? | | # # r kgg #? ??????????? | | #! # ##############+######k ############ ? | | ######## # #?? ????# ^ | | "" # # """ ## """ ???# ^ | | "" # # """ ##??Y" ? ?# | | "" %# # """ #????? ???## ########+####?? | | + # #????? ???## ##????????????? | | [ * # + #?????????# #????????????? | | [ # # "Y" #? ???????# #????????????? | | [* # # """ #?????????# T / ???????? | | # # #? ???????# ##### #??? | | ######## ##########?????????# #?????????#??? | | ???#???# #???##?????????????## ####????????????? | | ######## #???????#???????????# #???????????????? | | ## ####?????????????????# #???????????????? | | !! ## #???????#??#?????????# #???????????????? | | !! ## #????????????????????# ????????????????? | | ! =## #???#????????????????# ????????????????? | | ## #????????????????????# ????????????????? | | ## #????#???????????????# ????????????????? | | ## #????????????????????# ????????????????? | +----------------------------------------------------+ Best States ------------- Heat Dissipation 25 Energy Generation 10 Energy Capacity 125 Matter Stores 300 Matter Capacity 300 Sight Range 16 Terrain Scan Range 16 Terrain Scan Density 10 Evasion (%) 55 Item Schematics ----------------- None Robot Schematics ------------------ None Fabricated ------------ Nothing Alien Tech Used ----------------- None Achievements -------------- None Challenges ------------ None Game ------ Seed AccelerationSubatomicJammer Manual? 0 Play Time 00:10:31 Cumulative 8.5 hours Start 2025.03.26 @ 21:16:02 End 2025.03.26 @ 21:23:50 Sessions 1 Manual Loads 0 Difficulty Rogue Special Mode None Game No. 23 Rogue 19 Adventurer 4 Explorer 0 Win Type - Total 0 Types 0/0/0/0/0/0/0/0/0 Lore% 11 Gallery% 16 Achievement% 18 Wizard Run 0 Options --------- Layout 0 ASCII 0 Keyboard 0 Movement Numpad Keybinds 0 Fullscreen 2 Font 36/Smallcaps Map View 76x50 Zoom Use 0% Tactical HUD 1 Map Filters NONE Filters NONE Steam 1 RUN: d35ddeed-988a-4a4d-bcd0-6640191f977d